fUSD/lending_fUSD_20250221
["ID","MTS","AMOUNT","RATE_DAILY","PERIOD"]
[353947221,1740163837272,-1421.75,0.00010958,2]
[353947222,1740163837281,-500.0,0.00010958,2]
[353947223,1740163837290,-902.81,0.00010958,2]
[353947224,1740163837299,-500.0,0.00010958,2]
[353947225,1740163837309,-522.30861718,0.00010958,2]
[353947226,1740163837320,-187.79106232,0.00010958,2]
[353947227,1740163837333,-817.12,0.00010959,2]
[353947228,1740163837343,-506.25,0.00010959,2]
[353947229,1740163837353,-164.85,0.00010964,2]
[353947230,1740163837362,-150.0,0.00010999,2]
[353947231,1740163837372,-417.90819264,0.00011023,2]
[353947232,1740163837387,-500.0,0.00011039,2]
[353947233,1740163837397,-401.2848954,0.00011039,2]
[353947234,1740163837406,-500.0,0.00011039,2]
[353947235,1740163837415,-593.84,0.00011039,2]
[353947236,1740163837424,-500.0,0.00011039,2]
[353947237,1740163837434,-500.0,0.00011039,2]
[353947238,1740163837443,-1148.52,0.00011039,2]
[353947239,1740163837453,-500.0,0.00011039,2]
[353947240,1740163837462,-500.0,0.00011039,2]
[353947241,1740163837472,-726.21,0.00011039,2]
[353947242,1740163837482,-612.85,0.00011039,2]
[353947243,1740163837492,-1541.59,0.00011039,2]
[353947244,1740163837501,-1400.3,0.00011039,2]
[353947245,1740163837511,-1015.27,0.00011039,2]
[353947246,1740163837523,-500.0,0.00011039,2]
[353947248,1740163837533,-1526.1,0.00011039,2]
[353947249,1740163837542,-697.21,0.00011039,2]
[353947250,1740163837552,-596.33,0.00011039,2]
[353947251,1740163837562,-579.59,0.00011039,2]
[353947253,1740163837571,-835.91,0.00011039,2]
[353947254,1740163837582,-500.0,0.00011039,2]
[353947255,1740163837591,-862.9,0.00011039,2]
[353947256,1740163837603,-500.0,0.00011039,2]
[353947257,1740163837613,-592.85,0.00011039,2]
[353947258,1740163837623,-1135.18,0.00011039,2]
[353947259,1740163837632,-785.86,0.00011039,2]
[353947260,1740163837642,-539.36,0.00011039,2]
[353947261,1740163837651,-758.96,0.00011039,2]
[353947262,1740163837660,-500.0,0.00011039,2]
[353947263,1740163837670,-1537.07,0.00011039,2]
[353947264,1740163837679,-1729.54,0.00011039,2]
[353947265,1740163837688,-1335.54,0.00011039,2]
[353947266,1740163837698,-500.0,0.00011039,2]
[353947267,1740163837707,-500.0,0.00011039,2]
[353947268,1740163837716,-500.0,0.00011039,2]
[353947270,1740163837725,-500.0,0.00011039,2]
[353947272,1740163837734,-590.04,0.00011039,2]
[353947273,1740163837744,-500.0,0.00011039,2]
[353947274,1740163837753,-500.0,0.00011039,2]
[353947275,1740163837762,-728.83,0.00011039,2]
[353947276,1740163837772,-500.0,0.00011039,2]
[353947277,1740163837782,-500.0,0.00011039,2]
[353947278,1740163837791,-596.5,0.00011039,2]
[353947279,1740163837800,-741.2,0.00011039,2]
[353947280,1740163837810,-2210.56,0.00011039,2]
[353947281,1740163837820,-500.0,0.00011039,2]
[353947282,1740163837830,-1432.17,0.00011039,2]
[353947283,1740163837839,-1114.14,0.00011039,2]
[353947284,1740163837849,-500.0,0.00011039,2]
[353947285,1740163837858,-500.0,0.00011039,2]
[353947286,1740163837868,-1426.77,0.00011039,2]
[353947287,1740163837878,-1911.53,0.00011039,2]
[353947288,1740163837888,-500.0,0.00011039,2]
[353947289,1740163837898,-1266.31,0.00011039,2]
[353947290,1740163837907,-696.42,0.00011039,2]
[353947291,1740163837917,-500.0,0.00011039,2]
[353947292,1740163837927,-807.36,0.00011039,2]
[353947293,1740163837938,-500.0,0.00011039,2]
[353947294,1740163837947,-1848.62,0.00011039,2]
[353947295,1740163837957,-1450.56,0.00011039,2]
[353947296,1740163837967,-500.0,0.00011039,2]
[353947297,1740163837977,-1900.77,0.00011039,2]
[353947298,1740163837987,-500.0,0.00011039,2]
[353947299,1740163837996,-797.67,0.00011039,2]
[353947300,1740163838005,-500.0,0.00011039,2]
[353947301,1740163838015,-500.0,0.00011039,2]
[353947302,1740163838024,-1114.86,0.00011039,2]
[353947303,1740163838034,-500.0,0.00011039,2]
[353947304,1740163838044,-500.0,0.00011039,2]
[353947305,1740163838054,-500.0,0.00011039,2]
[353947306,1740163838063,-1743.12,0.00011039,2]
[353947307,1740163838072,-500.0,0.00011039,2]
[353947308,1740163838083,-1323.69,0.00011039,2]
[353947326,1740163838261,-837.45,0.00011039,2]
[353947328,1740163838272,-1574.56,0.00011039,2]
[353947330,1740163838281,-611.85,0.00011039,2]
[353947332,1740163838290,-500.0,0.00011039,2]
[353947334,1740163838299,-1501.32,0.00011039,2]
[353947336,1740163838309,-500.0,0.00011039,2]
[353947338,1740163838318,-500.0,0.00011039,2]
[353947340,1740163838327,-500.0,0.00011039,2]
[353947342,1740163838338,-2529.44,0.00011039,2]
[353947344,1740163838348,-1818.98,0.00011039,2]
[353947346,1740163838356,-1017.98,0.00011039,2]
[353947348,1740163838365,-258.99349926,0.00011039,2]
[353947350,1740163838374,-1738.43,0.00011039,2]
[353947352,1740163838384,-1899.82,0.00011039,2]
[353947353,1740163838393,-1593.7,0.00011039,2]
[353947355,1740163838402,-500.0,0.00011039,2]
[353947357,1740163838411,-1898.07,0.00011039,2]
[353947359,1740163838422,-535.28,0.00011039,2]
[353947361,1740163838431,-500.0,0.00011039,2]
[353947363,1740163838440,-973.02,0.00011039,2]
[353947365,1740163838449,-1069.7,0.00011039,2]
[353947367,1740163838458,-1998.89,0.00011039,2]
[353947369,1740163838469,-1522.2,0.00011039,2]
[353947371,1740163838479,-855.28,0.00011039,2]
[353947373,1740163838488,-933.53,0.00011039,2]
[353947375,1740163838498,-796.68,0.00011039,2]
[353947377,1740163838507,-1570.48,0.00011039,2]
[353947378,1740163838516,-467.17904932,0.00011039,2]
[353947380,1740163838530,-464.69358378,0.00011039,2]
[353947382,1740163838539,-1375.37,0.00011039,2]
[353947384,1740163838547,-703.74,0.00011039,2]
[353947386,1740163838556,-1552.85,0.00011039,2]
[353947388,1740163838567,-500.0,0.00011039,2]
[353947390,1740163838576,-500.0,0.00011039,2]
[353947392,1740163838586,-2643.3,0.00011039,2]
[353947394,1740163838596,-1722.27,0.00011039,2]
[353947396,1740163838606,-2703.79,0.00011039,2]
[353947398,1740163838615,-1606.47,0.00011039,2]
[353947400,1740163838625,-706.2,0.00011039,2]
[353947402,1740163838634,-3008.57,0.00011039,2]
[353947404,1740163838643,-6608.9,0.00011039,2]
[353947405,1740163838652,-500.0,0.00011039,2]
[353947407,1740163838661,-1927.52,0.00011039,2]
[353947409,1740163838670,-500.0,0.00011039,2]
[353947411,1740163838680,-2033.52,0.00011039,2]
[353947413,1740163838690,-2316.16,0.00011039,2]
[353947415,1740163838699,-1793.49,0.00011039,2]
[353947417,1740163838708,-1827.37,0.00011039,2]
[353947419,1740163838717,-500.0,0.00011039,2]
[353947421,1740163838727,-500.0,0.00011039,2]
[353947423,1740163838736,-2100.03,0.00011039,2]
[353947425,1740163838746,-1189.09,0.00011039,2]
[353947427,1740163838756,-500.0,0.00011039,2]
[353947429,1740163838766,-500.0,0.00011039,2]
[353947432,1740163838776,-4297.75,0.00011039,2]
[353947433,1740163838785,-505.91123941,0.00011039,2]
[353947435,1740163838795,-1031.26,0.00011039,2]
[353947437,1740163838804,-500.0,0.00011039,2]
[353947439,1740163838815,-503.71701546,0.00011039,2]
[353947442,1740163838825,-1204.76,0.00011039,2]
[353947444,1740163838835,-500.0,0.00011039,2]
[353947445,1740163838845,-873.6,0.00011039,2]
[353947447,1740163838855,-500.0,0.00011039,2]
[353947450,1740163838864,-269.7981017,0.00011039,2]
[353947451,1740163838873,-500.0,0.00011039,2]
[353947453,1740163838882,-1990.42,0.00011039,2]
[353947455,1740163838892,-500.0,0.00011039,2]
[353947457,1740163838901,-500.0,0.00011039,2]
[353947459,1740163838911,-1789.53,0.0001104,2]
[353947461,1740163838920,-2192.31,0.0001104,2]
[353947463,1740163838930,-1837.75,0.0001104,2]
[353947465,1740163838940,-2356.45,0.0001104,2]
[353947467,1740163838950,-531.31,0.0001104,2]
[353947469,1740163838959,-2341.02,0.0001104,2]
[353947471,1740163838969,-2721.52,0.0001104,2]
[353947473,1740163838978,-705.39,0.0001104,2]
[353947475,1740163838987,-500.0,0.0001104,2]
[353947477,1740163838997,-3198.91,0.0001104,2]
[353947479,1740163839007,-638.18331576,0.0001104,2]
[353947481,1740163839017,-500.0,0.00011041,2]
[353947483,1740163839026,-500.0,0.00011041,2]
[353947485,1740163839036,-500.0,0.00011041,2]
[353947487,1740163839045,-500.0,0.00011041,2]
[353947489,1740163839055,-500.0,0.00011041,2]
[353947491,1740163839064,-500.0,0.00011041,2]
[353947493,1740163839073,-577.53,0.00011041,2]
[353947495,1740163839085,-785.2,0.00011041,2]
[353947497,1740163839094,-500.0,0.00011041,2]
[353947499,1740163839104,-500.0,0.00011041,2]
[353947501,1740163839114,-500.0,0.00011041,2]
[353947502,1740163839125,-610.41,0.00011041,2]
[353947504,1740163839135,-503.06484615,0.00011041,2]
[353947506,1740163839144,-500.0,0.00011041,2]
[353947508,1740163839155,-500.0,0.00011041,2]
[353947510,1740163839165,-613.61,0.00011041,2]
[353947512,1740163839175,-806.18,0.00011041,2]
[353947514,1740163839185,-500.0,0.00011041,2]
[353947516,1740163839194,-500.0,0.00011041,2]
[353947518,1740163839204,-570.45,0.00011041,2]
[353947520,1740163839213,-500.0,0.00011041,2]
[353947522,1740163839222,-500.0,0.00011041,2]
[353947524,1740163839231,-506.02,0.00011041,2]
[353947526,1740163839240,-501.38958874,0.00011041,2]
[353947528,1740163839250,-500.0,0.00011041,2]
[353947530,1740163839259,-500.0,0.00011041,2]
[353947532,1740163839270,-362.22036347,0.00011041,2]
[353947534,1740163839279,-500.0,0.00011041,2]
[353947536,1740163839288,-500.0,0.00011041,2]
[353947538,1740163839297,-500.0,0.00011041,2]
[353947540,1740163839306,-500.0,0.00011041,2]
[353947542,1740163839316,-500.0,0.00011041,2]
[353947544,1740163839325,-546.62884183,0.00011041,2]
[353947546,1740163839336,-500.0,0.00011041,2]
[353947548,1740163839345,-500.0,0.00011041,2]
[353947549,1740163839354,-508.53,0.00011041,2]
[353947551,1740163839363,-815.97,0.00011041,2]
[353947553,1740163839373,-988.14,0.00011041,2]
[353947555,1740163839382,-500.0,0.00011041,2]
[353947557,1740163839391,-500.0,0.00011041,2]
[353947559,1740163839401,-500.0,0.00011041,2]
[353947561,1740163839413,-500.0,0.00011041,2]
[353947563,1740163839423,-500.0,0.00011041,2]
[353947565,1740163839432,-500.0,0.00011041,2]
[353947567,1740163839441,-500.0,0.00011041,2]
[353947569,1740163839451,-1028.55,0.00011041,2]
[353947571,1740163839461,-571.33,0.00011041,2]
[353947573,1740163839470,-500.0,0.00011041,2]
[353947575,1740163839479,-500.0,0.00011041,2]
[353947577,1740163839489,-500.0,0.00011041,2]
[353947579,1740163839498,-500.0,0.00011041,2]
[353947581,1740163839507,-259.40320957,0.00011041,2]
[353947583,1740163839517,-928.12,0.00011041,2]
[353947585,1740163839529,-500.0,0.00011041,2]
[353947586,1740163839538,-563.12,0.00011041,2]
[353947587,1740163839547,-500.0,0.00011041,2]
[353947588,1740163839557,-771.77,0.00011041,2]
[353947589,1740163839567,-500.0,0.00011041,2]
[353947590,1740163839576,-500.0,0.00011041,2]
[353947591,1740163839587,-500.0,0.00011041,2]
[353947592,1740163839598,-500.0,0.00011041,2]
[353947593,1740163839608,-500.0,0.00011041,2]
[353947594,1740163839618,-500.0,0.00011041,2]
[353947595,1740163839627,-500.0,0.00011041,2]
[353947596,1740163839636,-500.0,0.00011041,2]
[353947597,1740163839646,-811.58,0.00011041,2]
[353947598,1740163839655,-810.34,0.00011041,2]
[353947599,1740163839665,-500.0,0.00011041,2]
[353947600,1740163839674,-673.7,0.00011041,2]
[353947601,1740163839684,-500.0,0.00011041,2]
[353947602,1740163839694,-500.0,0.00011041,2]
[353947603,1740163839703,-500.0,0.00011041,2]
[353947604,1740163839713,-500.0,0.00011041,2]
[353947605,1740163839722,-500.0,0.00011041,2]
[353947606,1740163839731,-500.0,0.00011041,2]
[353947607,1740163839740,-994.18,0.00011041,2]
[353947608,1740163839749,-500.0,0.00011041,2]
[353947609,1740163839758,-500.0,0.00011041,2]
[353947610,1740163839768,-1058.57,0.00011041,2]
[353947611,1740163839779,-500.0,0.00011041,2]
[353947612,1740163839788,-614.96884857,0.00011041,2]
[353947613,1740163839798,-813.74,0.00011041,2]
[353947614,1740163839808,-500.0,0.00011041,2]
[353947615,1740163839817,-522.69,0.00011041,2]
[353947616,1740163839827,-500.0,0.00011041,2]
[353947617,1740163839837,-588.48794998,0.00011041,2]
[353947618,1740163839846,-799.98,0.00011041,2]
[353947619,1740163839856,-500.0,0.00011041,2]
[353947620,1740163839865,-1413.55,0.00011041,2]
[353947621,1740163839875,-500.0,0.00011041,2]
[353947622,1740163839884,-1066.86,0.00011041,2]
[353947623,1740163839894,-500.0,0.00011041,2]
[353947624,1740163839903,-337.96610271,0.00011041,2]
[353947625,1740163839913,-500.0,0.00011041,2]
[353947626,1740163839922,-500.0,0.00011041,2]
[353947627,1740163839933,-500.0,0.00011041,2]
[353947628,1740163839943,-1170.15,0.00011041,2]
[353947629,1740163839952,-500.0,0.00011041,2]
[353947630,1740163839962,-500.0,0.00011041,2]
[353947631,1740163839971,-868.64,0.00011041,2]
[353947632,1740163839980,-500.0,0.00011041,2]
[353947633,1740163839989,-185.80801158,0.00011041,2]
[353947634,1740163839998,-500.0,0.00011041,2]
[353947635,1740163840008,-1155.02,0.00011041,2]
[353947636,1740163840017,-500.0,0.00011041,2]
[353947637,1740163840027,-500.0,0.00011041,2]
[353947638,1740163840036,-649.89,0.00011041,2]
[353947639,1740163840046,-500.0,0.00011041,2]
[353947640,1740163840055,-741.64,0.00011041,2]
[353947641,1740163840064,-500.0,0.00011041,2]
[353947642,1740163840074,-500.0,0.00011041,2]
[353947643,1740163840084,-500.0,0.00011041,2]
[353947644,1740163840093,-500.0,0.00011041,2]
[353947645,1740163840103,-500.0,0.00011041,2]
[353947646,1740163840112,-737.64,0.00011041,2]
[353947647,1740163840122,-620.99,0.00011041,2]
[353947648,1740163840131,-500.0,0.00011041,2]
[353947649,1740163840140,-367.42503957,0.00011041,2]
[353947650,1740163840150,-882.78,0.00011041,2]
[353947651,1740163840159,-500.0,0.00011041,2]
[353947652,1740163840169,-1015.7,0.00011041,2]
[353947653,1740163840178,-500.0,0.00011041,2]
[353947654,1740163840188,-500.0,0.00011041,2]
[353947655,1740163840197,-500.0,0.00011041,2]
[353947656,1740163840207,-500.0,0.00011041,2]
[353947657,1740163840216,-500.0,0.00011041,2]
[353947658,1740163840228,-577.55,0.00011041,2]
[353947659,1740163840238,-500.0,0.00011041,2]
[353947660,1740163840248,-645.83445187,0.00011041,2]
[353947661,1740163840257,-500.0,0.00011041,2]
[353947662,1740163840267,-1317.12,0.00011041,2]
[353947663,1740163840276,-736.12,0.00011041,2]
[353947664,1740163840285,-1066.52,0.00011041,2]
[353947665,1740163840295,-833.71,0.00011041,2]
[353947666,1740163840304,-870.65,0.00011041,2]
[353947667,1740163840313,-848.73,0.00011041,2]
[353947668,1740163840322,-1231.01,0.00011041,2]
[353947669,1740163840332,-702.53,0.00011041,2]
[353947670,1740163840341,-826.41,0.00011041,2]
[353947671,1740163840350,-787.36,0.00011041,2]
[353947672,1740163840360,-542.57,0.00011041,2]
[353947673,1740163840369,-500.0,0.00011041,2]
[353947674,1740163840379,-915.65,0.00011041,2]
[353947675,1740163840389,-500.0,0.00011041,2]
[353947676,1740163840398,-500.0,0.00011041,2]
[353947677,1740163840407,-500.0,0.00011041,2]
[353947678,1740163840416,-500.0,0.00011041,2]
[353947679,1740163840426,-836.88,0.00011041,2]
[353947680,1740163840435,-500.0,0.00011041,2]
[353947681,1740163840444,-500.0,0.00011041,2]
[353947682,1740163840453,-500.0,0.00011041,2]
[353947683,1740163840462,-500.0,0.00011041,2]
[353947684,1740163840471,-493.38970131,0.00011041,2]
[353947685,1740163840481,-1047.51,0.00011041,2]
[353947686,1740163840489,-1514.46,0.00011041,2]
[353947687,1740163840499,-500.0,0.00011041,2]
[353947688,1740163840508,-690.16,0.00011041,2]
[353947689,1740163840518,-500.0,0.00011041,2]
[353947690,1740163840532,-500.0,0.00011041,2]
[353947691,1740163840541,-982.67,0.00011041,2]
[353947692,1740163840550,-500.0,0.00011041,2]
[353947693,1740163840560,-500.0,0.00011041,2]
[353947694,1740163840568,-532.18,0.00011041,2]
[353947695,1740163840578,-500.0,0.00011041,2]
[353947696,1740163840588,-1110.45,0.00011041,2]
[353947697,1740163840597,-500.0,0.00011041,2]
[353947698,1740163840607,-500.0,0.00011041,2]
[353947699,1740163840617,-629.29,0.00011041,2]
[353947700,1740163840626,-500.0,0.00011041,2]
[353947701,1740163840636,-500.0,0.00011041,2]
[353947702,1740163840645,-1181.78,0.00011041,2]
[353947703,1740163840655,-500.0,0.00011041,2]
[353947704,1740163840664,-500.0,0.00011041,2]
[353947705,1740163840674,-450.16181234,0.00011041,2]
[353947706,1740163840683,-500.0,0.00011041,2]
[353947707,1740163840692,-190.37297259,0.00011041,2]
[353947708,1740163840701,-1220.21,0.00011041,2]
[353947709,1740163840710,-500.0,0.00011041,2]
[353947710,1740163840720,-506.27717247,0.00011041,2]
[353947711,1740163840729,-1174.28,0.00011041,2]
[353947712,1740163840738,-628.76,0.00011041,2]
[353947713,1740163840747,-500.0,0.00011041,2]
[353947714,1740163840756,-895.72,0.00011041,2]
[353947715,1740163840765,-728.47,0.00011041,2]
[353947716,1740163840776,-500.0,0.00011041,2]
[353947717,1740163840786,-500.0,0.00011041,2]
[353947718,1740163840795,-500.0,0.00011041,2]
[353947719,1740163840804,-846.83,0.00011041,2]
[353947720,1740163840813,-822.33,0.00011041,2]
[353947721,1740163840822,-1379.59,0.00011041,2]
[353947722,1740163840831,-858.75,0.00011041,2]
[353947723,1740163840840,-500.0,0.00011041,2]
[353947724,1740163840850,-606.53,0.00011041,2]
[353947725,1740163840859,-521.39529634,0.00011041,2]
[353947726,1740163840868,-500.0,0.00011041,2]
[353947727,1740163840876,-815.65,0.00011041,2]
[353947728,1740163840885,-522.29,0.00011041,2]
[353947729,1740163840895,-500.0,0.00011041,2]
[353947730,1740163840904,-500.0,0.00011041,2]
[353947731,1740163840913,-500.0,0.00011041,2]
[353947732,1740163840922,-575.07,0.00011041,2]
[353947733,1740163840931,-604.63,0.00011041,2]
[353947734,1740163840940,-1021.72,0.00011041,2]
[353947735,1740163840949,-500.0,0.00011041,2]
[353947736,1740163840959,-586.58,0.00011041,2]
[353947737,1740163840968,-500.0,0.00011041,2]
[353947738,1740163840977,-500.0,0.00011041,2]
[353947739,1740163840986,-829.73,0.00011041,2]
[353947740,1740163840995,-500.0,0.00011041,2]
[353947741,1740163841004,-500.0,0.00011041,2]
[353947742,1740163841014,-500.0,0.00011041,2]
[353947743,1740163841025,-500.0,0.00011041,2]
[353947744,1740163841034,-2046.4,0.00011041,2]
[353947745,1740163841043,-500.0,0.00011041,2]
[353947746,1740163841052,-500.0,0.00011041,2]
[353947747,1740163841061,-500.0,0.00011041,2]
[353947748,1740163841069,-500.0,0.00011041,2]
[353947749,1740163841078,-500.0,0.00011041,2]
[353947750,1740163841088,-500.0,0.00011041,2]
[353947751,1740163841097,-500.0,0.00011041,2]
[353947752,1740163841106,-614.81,0.00011041,2]
[353947753,1740163841115,-577.2,0.00011041,2]
[353947754,1740163841124,-1515.17,0.00011041,2]
[353947755,1740163841133,-500.0,0.00011041,2]
[353947756,1740163841142,-500.0,0.00011041,2]
[353947757,1740163841151,-500.0,0.00011041,2]
[353947758,1740163841160,-500.0,0.00011041,2]
[353947759,1740163841169,-1812.74,0.00011041,2]
[353947760,1740163841179,-2544.88,0.00011041,2]
[353947761,1740163841188,-729.46,0.00011041,2]
[353947762,1740163841197,-958.05,0.00011041,2]
[353947763,1740163841207,-500.0,0.00011041,2]
[353947764,1740163841216,-1801.32,0.00011041,2]
[353947765,1740163841225,-2736.37,0.00011041,2]
[353947766,1740163841234,-500.0,0.00011041,2]
[353947767,1740163841244,-500.0,0.00011041,2]
[353947768,1740163841252,-500.0,0.00011041,2]
[353947769,1740163841262,-2443.29935623,0.00011041,2]
[353947770,1740163841803,-214.33064377,0.00011041,2]
[353947771,1740163841813,-116.33935623,0.00011041,2]
[353947772,1740163841825,-595.38064377,0.00011041,2]
[353947773,1740163841835,-500.0,0.00011041,2]
[353947774,1740163841844,-500.0,0.00011041,2]
[353947775,1740163841853,-609.74,0.00011041,2]
[353947776,1740163841862,-500.0,0.00011041,2]
[353947777,1740163841871,-2318.43499897,0.00011041,2]
[353947778,1740163841883,-602.35500103,0.00011041,2]
[353947779,1740163841891,-1327.75,0.00011041,2]
[353947780,1740163841901,-517.41454381,0.00011041,2]
[353947781,1740163841910,-500.0,0.00011041,2]
[353947782,1740163841919,-500.0,0.00011041,2]
[353947783,1740163841928,-500.0,0.00011041,2]
[353947784,1740163841938,-500.0,0.00011041,2]
[353947785,1740163841948,-500.0,0.00011041,2]
[353947786,1740163841957,-500.0,0.00011041,2]
[353947787,1740163841967,-500.0,0.00011041,2]
[353947788,1740163841976,-4352.23237516,0.00011041,2]
[353947789,1740163842002,-675.83762484,0.00011041,2]
[353947790,1740163842011,-522.37,0.00011041,2]
[353947791,1740163842020,-500.0,0.00011041,2]
[353947792,1740163842029,-492.78148278,0.00011041,2]
[353947816,1740163843283,-607.97363732,0.00010958,2]
[353947818,1740163843301,-2238.91636268,0.00010958,2]
[353947819,1740163843310,-500.0,0.00010958,2]
[353947820,1740163843319,-162.74516087,0.00011039,2]
[353947821,1740163843530,-500.0,0.00011039,2]
[353947822,1740163843539,-94.19851722,0.00011041,2]
[353947823,1740163843549,-1208.9,0.00011041,2]
[353947824,1740163843558,-500.0,0.00011041,2]
[353947825,1740163843569,-500.0,0.00011041,2]
[353947826,1740163843578,-500.0,0.00011041,2]
[353947827,1740163843589,-500.0,0.00011041,2]
[353947828,1740163843600,-989.19,0.00011041,2]
[353947829,1740163843609,-749.2,0.00011041,2]
[353947830,1740163843619,-2086.82,0.00011041,2]
[353947831,1740163843629,-118.43695923,0.00011041,2]
[353947832,1740163843649,-381.56304077,0.00011041,2]
[353947833,1740163843658,-2064.04,0.00011041,2]
[353947834,1740163843668,-984.28,0.00011041,2]
[353947835,1740163843678,-500.0,0.00011041,2]
[353947836,1740163843687,-824.84,0.00011041,2]
[353947837,1740163843697,-500.0,0.00011041,2]
[353947838,1740163843707,-500.0,0.00011041,2]
[353947839,1740163843717,-500.0,0.00011041,2]
[353947840,1740163843727,-1681.34,0.00011041,2]
[353947841,1740163843736,-2677.34,0.00011041,2]
[353947842,1740163843745,-500.0,0.00011041,2]
[353947843,1740163843756,-500.0,0.00011041,2]
[353947844,1740163843766,-1018.83,0.00011041,2]
[353947845,1740163843776,-500.0,0.00011041,2]
[353947846,1740163843785,-506.49682106,0.00011041,2]
[353947847,1740163843795,-500.0,0.00011041,2]
[353947848,1740163843806,-1051.06,0.00011041,2]
[353947849,1740163843815,-500.0,0.00011041,2]
[353947850,1740163843825,-609.49,0.00011041,2]
[353947851,1740163843834,-106.4480782,0.00011041,2]
[353947852,1740163843847,-393.5519218,0.00011041,2]
[353947853,1740163843856,-500.0,0.00011041,2]
[353947854,1740163843866,-500.0,0.00011041,2]
[353947855,1740163843876,-962.56,0.00011041,2]
[353947856,1740163843885,-500.0,0.00011041,2]
[353947857,1740163843894,-208.74850025,0.00011041,2]
[353947858,1740163843903,-483.08,0.00011041,2]
[353947859,1740163843913,-500.0,0.00011041,2]
[353947860,1740163843923,-1858.4,0.00011041,2]
[353947861,1740163843936,-500.0,0.00011041,2]
[353947862,1740163843946,-0.47719716,0.00011041,2]
[353947863,1740163843958,-499.52280284,0.00011041,2]
[353947864,1740163843967,-500.0,0.00011041,2]
[353947865,1740163843977,-288.17719696,0.00011041,2]
[353947866,1740163844202,-468.03658204,0.00010958,2]
[353947867,1740163844212,-500.0,0.00010958,2]
[353947868,1740163844222,-306.40280304,0.00011041,2]
[353947869,1740163844232,-500.0,0.00011041,2]
[353947870,1740163844241,-1008.04567474,0.00011041,2]
[353947871,1740163844252,-288.27432526,0.00011041,2]
[353947872,1740163844261,-500.0,0.00011041,2]
[353947873,1740163844271,-665.9172636,0.00011041,2]
[353947874,1740163845380,-500.0,0.00010958,2]
[353947875,1740163845414,-472.45547172,0.00010958,2]
[353947876,1740163845425,-34.74452828,0.00010958,2]
[353947877,1740163845435,-500.0,0.00010958,2]
[353947878,1740163845445,-202.97200074,0.00011039,2]
[353947879,1740163845454,-500.0,0.00011039,2]
[353947880,1740163845464,-262.28347098,0.00011039,2]
[353947883,1740163845927,-2764.29,0.00010958,2]
[353947884,1740163845938,-235.71,0.00011039,2]
[353947886,1740164708725,150.0,9.986e-05,2]
[353947887,1740164711957,150.0,9.986e-05,2]
[353947888,1740164715842,150.0,9.986e-05,2]
[353947889,1740164749002,171.16,9.994e-05,2]
[353947890,1740164871323,545.67,9.903e-05,2]
[353947891,1740164896623,154.48,8.767e-05,2]
[353947893,1740164915210,680.39,8.219e-05,2]
[353947894,1740165031990,-454.13946582,0.0001,2]
[353947895,1740165032002,-95.86053418,0.0001,2]
[353947896,1740165032011,-230.83066331,0.0001,2]